Cogmind - Beta 16 @@@ ROGUE MODE // 2026.02.05 @ 23:01:05 Player: [THREAT] Result: Self-destructed Performance ------------- Evolutions (1) 500 Regions Visited (2) 400 Robots Destroyed (11) 55 Value Destroyed (129) 129 Prototype IDs (0) 0 Alien Tech Used (0) 0 Bonus (0) 0 TOTAL SCORE: 1084 Bonus ------- None Cogmind --------- Core Integrity 400/400 Matter 280/300 Energy 250/250 System Corruption 1% Temperature Cool (39) Movement Rolling (80) Location -9/Materials Parts ------- > --- POWER (1) -------- Ion Engine > --- PROPULSION (3) --- Wheel Wheel Wheel > --- UTILITY (3) ------ Small Storage Unit Core Shielding Backup Plating I > --- WEAPON (2) ------- Medium Laser Small Laser > --- INVENTORY (8) ---- Ion Engine Heat Sink High-capacity Storage Unit High-powered Tractor Beam Peak State ------------ > --- POWER ------------ Ion Engine > --- PROPULSION ------- Wheel Wheel Wheel > --- UTILITY ---------- Small Storage Unit Core Shielding Backup Plating I > --- WEAPON ----------- Medium Laser Small Laser > --- INVENTORY -------- Ion Engine Heat Sink [Rating: 9] Favorites ----------- Power Ion Engine Engine Ion Engine Propulsion Wheel Wheel Wheel Utility Small Storage Unit Storage Small Storage Unit Protection Backup Plating I Weapon Medium Laser Energy Gun Medium Laser Build | -11 -10 -9 ------- Run | Yrd Mat Mat Slots Evolved 2 | . . 2 Power . | . . . Propulsion 1 | . . 1 Utility 1 | . . 1 Weapon . | . . . Parts Attached 8 | 6 . 2 Power 1 | 1 . . Engine 1 | 1 . . Core . | . . . Reactor . | . . . Propulsion 3 | 2 . 1 Treads . | . . . Leg . | . . . Wheel 3 | 2 . 1 Hover . | . . . Flight . | . . . Utility 2 | 1 . 1 Device . | . . . Storage 1 | 1 . . Processor . | . . . Hackware . | . . . Protection 1 | . . 1 Artifact . | . . . Weapon 2 | 2 . . Energy Gun 2 | 2 . . Energy Cannon . | . . . Ballistic Gun . | . . . Ballistic Cannon . | . . . Launcher . | . . . Special Weapon . | . . . Impact Weapon . | . . . Slashing Weapon . | . . . Piercing Weapon . | . . . Special Melee Weapon . | . . . Unidentified Prototypes . | . . . Parts Lost . | . . . Power . | . . . Propulsion . | . . . Utility . | . . . Weapon . | . . . Highest Loss Streak . | . . . To Critical Strikes . | . . . Average Backups 2 | . 2 3 Power . | . 1 1 Propulsion . | . . . Utility . | . . 1 Weapon . | . . . Tool/Special . | . . . Unused Backups 3 | . . 3 Power 1 | . . 1 Propulsion . | . . . Utility 2 | . . 2 Weapon . | . . . Tool/Special . | . . . Average Slot Usage (%) 93 | . 92 97 Engine 13 | . 14 11 Wheel 28 | . 28 30 Storage 13 | . 14 11 Protection 9 | . 6 22 Energy Gun 26 | . 28 22 Peak Build Rating 9 | 6 7 9 Average Rating 6 | 4 6 8 On Entrance 4 | . 6 7 Avg Prop Armor Cover (%) . | . . . Naked Turns . | . . . Heaviest Build 15 | 13 14 15 Greatest Support 30 | 20 20 30 Greatest Overweight (x) . | . . . Average Overweight (x) . | . . . Largest Inventory Capacity 8 | 8 8 8 Average Capacity 7 | 5 8 8 Most Carried 4 | 4 4 4 Average Carried 2 | . 2 2 Final Capacity 8 | 8 8 8 Final Carried 4 | 1 4 4 Class Distribution -------------------- 100% | Mutant Dominant Class ---------------- Mutant | -10/Materials Mutant | -9/Materials Resources | -11 -10 -9 ----------- Run | Yrd Mat Mat Matter Collected 260 | 260 . . Remotely . | . . . Salvage Created 330 | 65 251 14 Parts 19 | 1 17 1 Haulers Intercepted . | . . . Recyclers Shooed . | . . . Parts Field Recycled . | . . . Retrieved Matter . | . . . Parts Self-Destructed . | . . . Prevented . | . . . Parts Restored . | . . . Kills | -11 -10 -9 ------- Run | Yrd Mat Mat Combat Hostiles Destroyed 7 | . 6 1 Guns 7 | . 6 1 Classes Destroyed 5 | 1 4 . Tunneler 1 | . 1 . Recycler 2 | 1 1 . Watcher 1 | . 1 . Swarmer 6 | . 5 1 Grunt 1 | . 1 . Best Kill Streak 5 | 1 5 1 Combat Bots Only 3 | . 3 1 Max Kills in Single Turn 1 | 1 1 1 Gunslinging . | . . . Exploded . | . . . Melee . | . . . Uniques/NPCs Destroyed . | . . . Combat | -11 -10 -9 -------- Run | Yrd Mat Mat Hostile Shots Fired 31 | . 13 18 Missed 10 | . 3 7 Hits 21 | . 10 11 Projectile 21 | . 10 11 Damage Taken 178 | . 83 95 Core 17 | . 17 . Absorbed by Shields . | . . . Core Remaining (%) 96 | 100 93 . Volleys Fired 28 | 13 12 3 Largest 2 | 2 2 2 Hottest 90 | 90 90 90 Shots Fired 55 | 25 24 6 Gun 55 | 25 24 6 Cannon . | . . . Launcher . | . . . Special . | . . . Kinetic . | . . . Thermal 55 | 25 24 6 Explosive . | . . . Electromagnetic . | . . . Robot Hit Streak 12 | 8 11 12 Robot Miss Streak 2 | 2 1 1 Penetration Max . | . . . Secondary Targets . | . . . Shots Hit Robots 34 | 16 15 3 Core Hits 15 | 2 11 2 Critical Kills . | . . . Critical Parts Destroyed . | . . . Critical Strikes 1 | 1 . . Burn 1 | 1 . . Melee Attacks . | . . . Impact . | . . . Slashing . | . . . Piercing . | . . . Sneak Attacks . | . . . Combat Hostiles . | . . . Follow-up Attacks . | . . . Damage Inflicted 399 | 196 169 34 Guns 399 | 196 169 34 Cannons . | . . . Explosions . | . . . Melee . | . . . Ramming . | . . . Kinetic . | . . . Thermal 399 | 196 169 34 Explosive . | . . . Electromagnetic . | . . . Impact . | . . . Slashing . | . . . Piercing . | . . . Highest Corruption 1 | . . 1 Average Corruption 1 | . . 1 Corruption Purged . | . . . Corruption Blocked . | . . . Overload Shots . | . . . Overflow Damage . | . . . Projectiles . | . . . Explosions . | . . . Melee . | . . . Knockbacks . | . . . Impact . | . . . Kinetic . | . . . Secondary . | . . . Self-Inflicted Damage . | . . . Shots . | . . . Rammed . | . . . Targets Rammed . | . . . Kicked . | . . . Crushed . | . . . Highest Temperature 180 | 180 110 48 Average Temperature 49 | 65 39 23 Received Heat Transfer 27 | . 12 15 Siege Activations . | . . . Martial Activations . | . . . Shielding Activations . | . . . Robots Disrupted . | . . . Combat Hostiles . | . . . Robots Corrupted . | . . . Combat Hostiles . | . . . Parts Fried . | . . . Impact Corruptions . | . . . Robots Melted . | . . . Combat Hostiles . | . . . Parts Melted 2 | 1 1 . Heat Transferred 1153 | 595 459 99 Parts Sabotaged . | . . . Parts Stolen . | . . . Parts Stripped . | . . . Power Chain Reactions . | . . . Alert | -11 -10 -9 ------- Run | Yrd Mat Mat Maximum Alert Level . | . . . Low Security (%) 100 | 100 100 100 Level 1 . | . . . Level 2 . | . . . Level 3 . | . . . Level 4 . | . . . Level 5 . | . . . High Security . | . . . Max Security . | . . . Peak Influence 128 | 5 128 79 Initial 49 | . . 49 Average 40 | . 60 61 Influence Increases 233 | 5 188 40 Destroy 0b10 Robot/C 140 | . 120 20 Destroy 0b10 Robot/NC 20 | 5 15 . Destroy Leader 32 | . 32 . Successful Hack 11 | . 6 5 Lose Combat Pursuer 30 | . 15 15 Influence Decreases 164 | 5 70 89 Entered New Map 69 | . . 69 Time Decay 95 | 5 70 20 Squads Dispatched 2 | . 1 1 Investigation 1 | . 1 . Extermination . | . . . Reinforcement 1 | . . 1 Assault . | . . . Garrison . | . . . Intercept . | . . . Searches Triggered . | . . . Construction Impeded . | . . . Haulers Reinforced . | . . . Active Scanning Responses . | . . . Cargo Convoy Interrupts . | . . . Stealth | -11 -10 -9 --------- Run | Yrd Mat Mat Distress Signals 2 | . . 2 Communications Jammed . | . . . Distress Signals . | . . . Times Spotted 17 | . 8 9 Peak Tracking Total 7 | . 3 7 Tactical Retreats 2 | . 1 1 Traps | -11 -10 -9 ------- Run | Yrd Mat Mat Traps Triggered 1 | . 1 . Indirectly . | . . . Trap Hack Attempts . | . . . Triggered . | . . . Disarmed . | . . . Reprogrammed . | . . . Reused . | . . . Traps Extracted . | . . . Installed . | . . . Triggered . | . . . Machines | -11 -10 -9 ---------- Run | Yrd Mat Mat Machines Disabled . | . . . Max in Single Turn . | . . . Machines Repaired . | . . . Machines Dismantled . | . . . Machines Sabotaged . | . . . Overloaded Fab Kills . | . . . Hacking | -11 -10 -9 --------- Run | Yrd Mat Mat Machines Accessed 2 | . 1 1 Terminals 1 | . . 1 Fabricators . | . . . Repair Stations 1 | . 1 . Recycling Units . | . . . Scanalyzers . | . . . Garrison Access . | . . . Total Hacks 7 | . 3 4 Successful 2 | . 1 1 Failed 5 | . 2 3 Catastrophic . | . . . Database Lockouts . | . . . Manual 4 | . . 4 Terminals 4 | . . 4 Fabricators . | . . . Repair Stations 3 | . 3 . Recycling Units . | . . . Scanalyzers . | . . . Garrison Access . | . . . Terminal Hacks . | . . . Fabricator Hacks . | . . . Repair Station Hacks 1 | . 1 . Refit 1 | . 1 . Recycling Unit Hacks . | . . . Scanalyzer . | . . . Garrison Access Hacks . | . . . Unauthorized Hacks 1 | . . 1 Terminals 1 | . . 1 Botnet 1 | . . 1 Fabricators . | . . . Repair Stations . | . . . Recycling Units . | . . . Scanalyzers . | . . . Garrison Access . | . . . Data Cores Recovered . | . . . Used . | . . . Hacking Detections 2 | . 1 1 Full Trace Events 1 | . . 1 Feedback Events 1 | . . 1 Corruption 1 | . . 1 Feedback Blocked . | . . . Robot Schematics Acquired . | . . . Robots Built . | . . . Authchips . | . . . Time . | . . . Total Robot Build Rating . | . . . Part Schematics Acquired . | . . . Parts Built . | . . . Authchips . | . . . Time . | . . . Total Part Build Rating . | . . . Part Studies Acquired . | . . . Parts Repaired . | . . . Time . | . . . Parts Recycled . | . . . Recycled Matter . | . . . Retrieved Matter . | . . . Retrieved Components . | . . . Parts Scanalyzed . | . . . Part Schematics Acquired . | . . . Parts Damaged . | . . . Bothacking | -11 -10 -9 ------------ Run | Yrd Mat Mat Used RIF Installer . | . . . Robots Hacked . | . . . Non-combat . | . . . Combat . | . . . Robot Hacks Applied . | . . . Relay Couplers Released . | . . . Fabnet Peak Effective % . | . . . Robots Rewired . | . . . Allies Hacked . | . . . Hacks Repelled . | . . . Allies | -11 -10 -9 -------- Run | Yrd Mat Mat Total Allies . | . . . Largest Group . | . . . Highest-Rated Group . | . . . Highest-Rated Ally . | . . . Total Orders . | . . . Ally Attacks . | . . . Total Damage . | . . . Kills . | . . . Allies Corrupted . | . . . Allies Melted . | . . . Intel | -11 -10 -9 ------- Run | Yrd Mat Mat Active Infowar (turns) . | . . . Robot Analysis Total . | . . . Derelict Logs Recovered . | . . . Drone Launches . | . . . Drone Recoveries . | . . . Exploration | -11 -10 -9 ------------- Run | Yrd Mat Mat Turns Passed 332 | 111 179 42 Spaces Moved 286 | 80 170 36 Core 11 | 11 . . Treads . | . . . Legs . | . . . Wheels 275 | 69 170 36 Hover . | . . . Flight . | . . . Fastest Speed 50 | 50 80 80 Average Speed 78 | 75 80 80 Slowest Speed 80 | 80 80 80 Overloaded Moves . | . . . Propulsion Burnouts . | . . . Robots Hopped . | . . . Potential Cave-ins . | . . . Cave-ins Triggered . | . . . Exploration Rate (%) 15 | 4 34 7 Regions Visited 2 Branch Regions . Pre-discovered Areas . | . . . Known Exits Taken . | . . . Unknown Exits Taken 2 | 1 1 . Scrap Searched . | . . . Spaces Dug . | . . . Terrain Destroyed . | . . . Melee . | . . . Projectile . | . . . AOE . | . . . Terrain Rammed . | . . . Walls Destroyed . | . . . Machines Disabled . | . . . Actions | -11 -10 -9 --------- Run | Yrd Mat Mat Total 336 | 105 188 43 Wait 4 | . 4 . Move 284 | 79 169 36 Hop . | . . . Pick Up 12 | 7 3 2 Fast Attach . | . . . Attach 8 | 6 . 2 Detach . | . . . Swap . | . . . Drop . | . . . Fire 28 | 13 12 3 Melee . | . . . Ram . | . . . Kick . | . . . Crush . | . . . Escape Stasis . | . . . Rewire . | . . . Trap . | . . . Miscellaneous . | . . . Route ------- -11/Scrapyard -10/Materials (discovered 2 exits: *Mat x2) -9/Materials History --------- Turn | Location | Event 7 | -11/Scrapyard | Discovered new exit (range 16) 112 | -11/Scrapyard | Entered Materials 188 | -10/Materials | Discovered new exit (range 10) 269 | -10/Materials | Discovered new exit (range 16) 291 | -10/Materials | Entered another Materials area 291 | -9/Materials | Evolved 2 slots: Propulsion x1, Utility x1 313 | -9/Materials | Build established: Mutant 333 | -9/Materials | Self-destructed Last Messages --------------- R-06 Scavenger destroyed. S-10 Pest destroyed. EXIT=FOUND PARAMETERS=PROPULSION+1,UTILITY+1 LOCATION=UNKNOWN GOAL=ESCAPE Acquired Hcp. Storage Unit. ALERT: Hostiles spotted, dispatching reinforcements to Terminal M003. Connecting with Terminal... Current location identified: Materials >>Trojan(Botnet) Trojan loaded successfully. Testing... Terminal linked with 0 systems. Awaiting botnet instructions. Feedback: System corruption (+1%). S-10 Pest destroyed. W-16 Scout sends out distress signal. Acquired Hpw. Tractor Beam. Map ----- +----------------------------------------------------+ | ?????????????????????????????????????????????????? | | ?????????????????????????????????????????????????? | | ?????????????????????????????????????????????????? | | ?????????????????????????????????????????????????? | | ?????????????????????????????????????????????????? | | ?????????????????????????????????????????????????? | | ???????????????????????????# #?????????????????? | | ??????????????????????????? ?????????????????? | | ??????????????????????????? ?????????????????? | | ??????????????????????????? ?????????????????? | | ??????????????? ????????# #?????????????????? | | ???????????????# ????????# #?????????????????? | | ???????????????# ???????# #?????????????????? | | ???????????????# ???????# #?????????????????? | | ?????????????### ??????# #?????????????????? | | ?????????????#"" ??????# #?????????????????? | | ??????????????T ss ??????# #?????????????????? | | ???????????????# ??????# #?????????????????? | | ???????????????# ?###### g #?????????????????? | | ???????????????# s##"T"##gg ##########????????? | | ???????????##??# %* #????????? | | ???????????" ## #????????? | | ???????????? o/ """" #????????? | | ??????????????## """" #????????? | | ???????????????# !! """" #????????? | | ??????????????## ! @ ########### | | ??????????????+ !! # # | | ??????????????# ! # # | | ??????????????# ## ########### + # | | ??????????????# ??# #?????????# # # | | ??????????????#???#==!!! #?????????# # # | | ??????????????????#==!!!!#?????????# #? # | | ??????????????????########?????????#####? # | | ?????????????????????????????????????????? # | | ??????????????????????????????????????????######## | | ?????????????????????????????????????????????????? | | ?????????????????????????????????????????????????? | | | | | | | | | | | | | | | | | | | | | | | | | | | +----------------------------------------------------+ Best States ------------- Heat Dissipation 28 Energy Generation 10 Energy Capacity 250 Matter Stores 300 Matter Capacity 300 Sight Range 16 Terrain Scan Density 10 Armor Coverage 80 Core Shielding 20 Evasion (%) 50 Item Schematics ----------------- None Robot Schematics ------------------ None Fabricated ------------ Nothing Repaired ---------- Nothing Studied --------- None Alien Tech Used ----------------- None Achievements -------------- None Challenges ------------ None Game ------ Seed HellfireSniperMiniperforator Manual? 0 Play Time 00:03:28 Cumulative 73.8 hours Start 2026.02.05 @ 22:58:19 End 2026.02.05 @ 23:01:05 Sessions 1 Manual Loads 0 Difficulty Rogue Special Mode None Game No. 39 Rogue 9 Adventurer 30 Explorer 0 Win Type - Total 1 Types 1/0/0/0/0/0/0/0/0/0 Lore% 26 Gallery% 32 Achievement% 31 Wizard Run 0 Options --------- Layout 2 ASCII 0 Keyboard 0 Movement Numpad Keybinds 0 Fullscreen 1 Font 16/SmallcapsGlow Map View 50x49 Zoom Use 32% Tactical HUD 0 Map Filters NONE Filters NONE Steam 1 RUN: 9150c390-126c-4a28-92ba-e7d2338af8a0